Cogmind - Beta 11.1 @@@ ROGUE MODE // 2022.04.29 @ 18:14:24 Player: Runia Result: Destroyed by YI-UF0 with YI-UF0's Doublenader Performance ------------- Evolutions (0) 0 Regions Visited (4) 800 Robots Destroyed (23) 115 Value Destroyed (484) 484 Prototype IDs (4) 80 Alien Tech Used (0) 0 Bonus (14) 14 TOTAL SCORE: 1493 Bonus ------- Follower Combat Kills 14 Cogmind --------- Core Integrity 0/250 Matter 291/300 Energy 100/100 System Corruption 0% Temperature Cool (0) Movement Core (1400) Ox27 Location -9/Mines Parts ------- > --- POWER (1) -------- (None) > --- PROPULSION (2) --- (None) > --- UTILITY (2) ------ Huge Storage Unit > --- WEAPON (2) ------- Light Assault Rifle Light Assault Rifle > --- INVENTORY (25) --- Ion Engine Light Treads Improved Treads Improved Treads Improved Treads Improved Treads Improved Treads Improved Treads High-capacity Matter Pod (200) Medium Laser Medium Laser Medium Laser Assault Rifle Grenade Launcher Grenade Launcher Peak State ------------ > --- POWER ------------ Ion Engine > --- PROPULSION ------- Improved Treads Improved Treads > --- UTILITY ---------- Huge Storage Unit Light Armor Plating > --- WEAPON ----------- Medium Laser Heavy Assault Rifle > --- INVENTORY -------- Ion Engine Improved Treads Improved Treads Improved Treads Improved Treads Improved Treads Improved Treads High-capacity Matter Pod Medium Laser Medium Laser Assault Rifle Assault Rifle Light Assault Rifle Light Assault Rifle Grenade Launcher Grenade Launcher [Rating: 12] Favorites ----------- Power Ion Engine Engine Ion Engine Propulsion Improved Treads Treads Improved Treads Leg Aluminum Leg Utility Huge Storage Unit Storage Huge Storage Unit Protection Light Armor Plating Weapon Heavy Assault Rifle Energy Gun Medium Laser Ballistic Gun Heavy Assault Rifle Launcher Grenade Launcher Build | -11 -10 -10 -10 -9 ------- Run | Scr Mat Min Exi Min Slots Evolved . | . . . . . Power . | . . . . . Propulsion . | . . . . . Utility . | . . . . . Weapon . | . . . . . Parts Attached 19 | 2 9 6 . 2 Power 2 | . 2 . . . Engine 2 | . 2 . . . Core . | . . . . . Reactor . | . . . . . Propulsion 5 | 2 3 . . . Treads 5 | 2 3 . . . Leg . | . . . . . Wheel . | . . . . . Hover . | . . . . . Flight . | . . . . . Utility 4 | . 2 2 . . Device . | . . . . . Storage 2 | . 2 . . . Processor . | . . . . . Hackware . | . . . . . Protection 2 | . . 2 . . Artifact . | . . . . . Weapon 8 | . 2 4 . 2 Energy Gun 3 | . 2 1 . . Energy Cannon . | . . . . . Ballistic Gun 4 | . . 2 . 2 Ballistic Cannon . | . . . . . Launcher 1 | . . 1 . . Special Weapon . | . . . . . Impact Weapon . | . . . . . Slashing Weapon . | . . . . . Piercing Weapon . | . . . . . Special Melee Weapon . | . . . . . Unidentified Prototypes . | . . . . . Parts Lost 7 | . . 1 . 6 Power 1 | . . . . 1 Propulsion 2 | . . . . 2 Utility 2 | . . 1 . 1 Weapon 2 | . . . . 2 Highest Loss Streak 6 | . . 1 . 6 To Critical Strikes . | . . . . . Average Slot Usage (%) 95 | . 85 99 100 97 Engine 13 | . 14 14 14 13 Treads 27 | . 28 28 28 27 Storage 14 | . 14 14 14 14 Protection 9 | . . 13 14 13 Energy Gun 4 | . 13 1 . . Ballistic Gun 23 | . 14 26 28 28 Naked Turns . | . . . . . Heaviest Build 93 | 13 88 93 93 93 Greatest Support 46 | 40 46 46 46 46 Greatest Overweight (x) 2 | . 1 2 2 2 Average Overweight (x) 1 | . . 1 2 2 Largest Inventory Capacity 25 | 8 25 25 25 25 Average Capacity 22 | 8 16 25 25 25 Most Carried 17 | 5 15 17 17 17 Average Carried 14 | 3 10 16 17 16 Final Capacity 25 | 8 25 25 25 25 Final Carried 17 | 2 15 17 17 15 Class Distribution -------------------- 100% | Mutant Dominant Class ---------------- Mutant | -10/Materials Mutant | -10/Mines Mutant | -10/Exiles Mutant | -9/Mines Resources | -11 -10 -10 -10 -9 ----------- Run | Scr Mat Min Exi Min Matter Collected 745 | 200 148 391 . 6 Remotely . | . . . . . Salvage Created 577 | . 384 193 . . Parts 40 | . 22 18 . . Haulers Intercepted 2 | . 2 . . . Recyclers Shooed 4 | . 3 1 . . Parts Field Recycled . | . . . . . Retrieved Matter . | . . . . . Parts Self-Destructed . | . . . . . Prevented . | . . . . . Kills | -11 -10 -10 -10 -9 ------- Run | Scr Mat Min Exi Min Combat Hostiles Destroyed 17 | . 6 11 . . Guns 15 | . 6 9 . . AOE 2 | . . 2 . . Classes Destroyed 8 | . 6 2 . . Worker 1 | . 1 . . . Builder 1 | . . 1 . . Hauler 2 | . 2 . . . Recycler 1 | . 1 . . . Watcher 1 | . 1 . . . Swarmer 10 | . 3 7 . . Grunt 5 | . 3 2 . . Demolisher 2 | . . 2 . . Best Kill Streak 4 | . 4 3 . . Combat Bots Only 3 | . 3 3 . . Max Kills in Single Turn 2 | . 2 1 . . Gunslinging 1 | . 1 . . . Exploded 1 | . . 1 . . Melee . | . . . . . Uniques/NPCs Destroyed . | . . . . . Combat | -11 -10 -10 -10 -9 -------- Run | Scr Mat Min Exi Min Damage Taken 1330 | . 241 522 . 567 Core 256 | . 31 102 . 123 Absorbed by Shields . | . . . . . Core Remaining (%) 100 | 100 . . . . Volleys Fired 69 | . 33 27 . 9 Largest 2 | . 2 2 . 2 Hottest 73 | . 70 73 . 43 Shots Fired 135 | . 66 52 . 17 Gun 133 | . 66 50 . 17 Cannon . | . . . . . Launcher 2 | . . 2 . . Special . | . . . . . Kinetic 93 | . 33 43 . 17 Thermal 22 | . 15 7 . . Explosive 2 | . . 2 . . Electromagnetic 18 | . 18 . . . Robot Hit Streak 13 | . 13 12 . 3 Robot Miss Streak 4 | . 4 3 . 3 Penetration Max . | . . . . . Secondary Targets 4 | . 3 1 . . Max Gunslinging Chain 1 | . 1 1 . . Shots Hit Robots 93 | . 47 38 . 8 Core Hits 42 | . 20 20 . 2 Critical Kills 1 | . 1 . . . Critical Parts Destroyed . | . . . . . Critical Strikes 3 | . 3 . . . Burn 2 | . 2 . . . Destroy 1 | . 1 . . . Melee Attacks . | . . . . . Impact . | . . . . . Slashing . | . . . . . Piercing . | . . . . . Sneak Attacks . | . . . . . Combat Hostiles . | . . . . . Follow-up Attacks . | . . . . . Damage Inflicted 1358 | . 666 631 . 61 Guns 1079 | . 529 489 . 61 Cannons . | . . . . . Explosions 279 | . 137 142 . . Melee . | . . . . . Ramming . | . . . . . Kinetic 664 | . 188 415 . 61 Thermal 373 | . 299 74 . . Explosive 142 | . . 142 . . Electromagnetic 179 | . 179 . . . Impact . | . . . . . Slashing . | . . . . . Piercing . | . . . . . Highest Corruption . | . . . . . Average Corruption . | . . . . . Corruption Purged . | . . . . . Corruption Blocked . | . . . . . Overload Shots . | . . . . . Overflow Damage . | . . . . . Projectiles . | . . . . . Explosions . | . . . . . Melee . | . . . . . Knockbacks . | . . . . . Impact . | . . . . . Kinetic . | . . . . . Secondary . | . . . . . Self-Inflicted Damage 90 | . 76 14 . . Shots 3 | . 2 1 . . Rammed . | . . . . . Targets Rammed . | . . . . . Kicked . | . . . . . Crushed . | . . . . . Highest Temperature 120 | . 120 60 . 3 Average Temperature 33 | . 39 19 . 3 Received Heat Transfer 201 | . 78 123 . . Siege Activations . | . . . . . Robots Corrupted . | . . . . . Combat Hostiles . | . . . . . Parts Fried . | . . . . . Impact Corruptions . | . . . . . Robots Melted . | . . . . . Combat Hostiles . | . . . . . Parts Melted 2 | . 2 . . . Heat Transferred 964 | . 742 222 . . Parts Sabotaged . | . . . . . Parts Stolen . | . . . . . Parts Stripped . | . . . . . Power Chain Reactions 2 | . 2 . . . Missiles Intercepted . | . . . . . Alert | -11 -10 -10 -10 -9 ------- Run | Scr Mat Min Exi Min Peak Influence 269 | . 269 172 . . Initial 19 | . . 19 . . Average 66 | . 119 45 . . Maximum Alert Level 1 | . 1 . . . Low Security (%) 94 | 100 82 100 . 100 Level 1 5 | . 17 . . . Level 2 . | . . . . . Level 3 . | . . . . . Level 4 . | . . . . . Level 5 . | . . . . . High Security . | . . . . . Max Security . | . . . . . Squads Dispatched 1 | . 1 . . . Investigation 1 | . 1 . . . Extermination . | . . . . . Reinforcement . | . . . . . Assault . | . . . . . Garrison . | . . . . . Intercept . | . . . . . Searches Triggered . | . . . . . Construction Impeded . | . . . . . Haulers Reinforced . | . . . . . Active Scanning Responses . | . . . . . Cargo Convoy Interrupts . | . . . . . Stealth | -11 -10 -10 -10 -9 --------- Run | Scr Mat Min Exi Min Distress Signals 2 | . 2 . . . Communications Jammed . | . . . . . Distress Signals . | . . . . . Times Spotted 30 | . 15 14 . 1 Peak Tracking Total 3 | . 3 3 . 1 Tactical Retreats . | . . . . . Traps | -11 -10 -10 -10 -9 ------- Run | Scr Mat Min Exi Min Traps Triggered . | . . . . . Indirectly . | . . . . . Trap Hack Attempts . | . . . . . Triggered . | . . . . . Disarmed . | . . . . . Reprogrammed . | . . . . . Reused . | . . . . . Traps Extracted . | . . . . . Installed 1 | . . 1 . . Triggered . | . . . . . Machines | -11 -10 -10 -10 -9 ---------- Run | Scr Mat Min Exi Min Machines Disabled 5 | . 2 3 . . Max in Single Turn 2 | . 1 2 . . Machines Sabotaged . | . . . . . Garrisons Compromised . | . . . . . Overloaded Fab Kills . | . . . . . Hacking | -11 -10 -10 -10 -9 --------- Run | Scr Mat Min Exi Min Machines Accessed 8 | . 6 1 1 . Terminals 6 | . 5 1 . . Fabricators . | . . . . . Repair Stations . | . . . . . Recycling Units 1 | . 1 . . . Scanalyzers . | . . . . . Garrison Access . | . . . . . Total Hacks 24 | . 18 5 1 . Successful 13 | . 11 1 1 . Failed 9 | . 6 3 . . Catastrophic 1 | . 1 . . . Database Lockouts 2 | . 1 1 . . Manual 19 | . 14 5 . . Terminals 22 | . 17 5 . . Fabricators . | . . . . . Repair Stations . | . . . . . Recycling Units 1 | . 1 . . . Scanalyzers . | . . . . . Garrison Access . | . . . . . Terminal Hacks 12 | . 10 1 1 . Record 1 | . . . 1 . Robot Analysis 4 | . 4 . . . Prototype ID Bank 2 | . 1 1 . . Locate Traps 1 | . 1 . . . Zone Layout 4 | . 4 . . . Fabricator Hacks . | . . . . . Repair Station Hacks . | . . . . . Recycling Unit Hacks . | . . . . . Scanalyzer . | . . . . . Garrison Access Hacks . | . . . . . Unauthorized Hacks 1 | . 1 . . . Terminals . | . . . . . Fabricators . | . . . . . Repair Stations . | . . . . . Recycling Units 1 | . 1 . . . Tunnel 1 | . 1 . . . Scanalyzers . | . . . . . Garrison Access . | . . . . . Data Cores Recovered . | . . . . . Used . | . . . . . Hacking Detections 5 | . 5 . . . Full Trace Events . | . . . . . Feedback Events . | . . . . . Feedback Blocked . | . . . . . Robot Schematics Acquired . | . . . . . Robots Built . | . . . . . Authchips . | . . . . . Time . | . . . . . Total Robot Build Rating . | . . . . . Part Schematics Acquired . | . . . . . Parts Built . | . . . . . Authchips . | . . . . . Time . | . . . . . Total Part Build Rating . | . . . . . Parts Repaired . | . . . . . Time . | . . . . . Parts Recycled . | . . . . . Recycled Matter . | . . . . . Retrieved Matter . | . . . . . Retrieved Components . | . . . . . Parts Scanalyzed . | . . . . . Part Schematics Acquired . | . . . . . Parts Damaged . | . . . . . Bothacking | -11 -10 -10 -10 -9 ------------ Run | Scr Mat Min Exi Min Used RIF Installer . | . . . . . Robots Hacked . | . . . . . Non-combat . | . . . . . Combat . | . . . . . Robot Hacks Applied . | . . . . . Relay Couplers Released . | . . . . . Fabnet Peak Effective % . | . . . . . Robots Rewired . | . . . . . Allies Hacked . | . . . . . Hacks Repelled . | . . . . . Allies | -11 -10 -10 -10 -9 -------- Run | Scr Mat Min Exi Min Total Allies 3 | . . 3 . . Largest Group 2 | . . 2 . . Highest-Rated Group 42 | . . 42 . . Highest-Rated Ally 31 | . . 31 . . Total Orders . | . . . . . Ally Attacks 7 | . . 7 . . Total Damage 106 | . . 106 . . Kills 2 | . . 2 . . Allies Corrupted . | . . . . . Allies Melted . | . . . . . Intel | -11 -10 -10 -10 -9 ------- Run | Scr Mat Min Exi Min Robot Analysis Total 4 | . 4 . . . Derelict Logs Recovered 1 | . . 1 . . Drone Launches . | . . . . . Drone Recoveries . | . . . . . Exploration | -11 -10 -10 -10 -9 ------------- Run | Scr Mat Min Exi Min Turns Passed 3959 | 5 1178 2008 480 288 Spaces Moved 1374 | 1 537 603 151 82 Core . | . . . . . Treads 1374 | 1 537 603 151 82 Legs . | . . . . . Wheels . | . . . . . Hover . | . . . . . Flight . | . . . . . Fastest Speed 160 | 160 160 240 320 320 Average Speed 269 | 160 194 316 320 320 Slowest Speed 320 | 160 240 320 320 320 Overloaded Moves . | . . . . . Propulsion Burnouts . | . . . . . Robots Hopped . | . . . . . Cave-ins Triggered . | . . . . . Exploration Rate (%) 50 | 2 76 87 48 40 Regions Visited 4 Branch Regions 3 Pre-discovered Areas 3 | . 1 1 1 . Known Exits Taken . | . . . . . Unknown Exits Taken 4 | 1 1 1 1 . Scrap Searched 3 | . . 2 . 1 Spaces Dug . | . . . . . Terrain Destroyed 12 | . 8 4 . . Melee . | . . . . . Projectile . | . . . . . AOE 12 | . 8 4 . . Terrain Rammed . | . . . . . Walls Destroyed . | . . . . . Machines Disabled . | . . . . . Actions | -11 -10 -10 -10 -9 --------- Run | Scr Mat Min Exi Min Total 1516 | 6 615 651 150 94 Wait 22 | . 10 11 . 1 Move 1370 | . 536 602 150 82 Hop . | . . . . . Pick Up 20 | . 17 3 . . Fast Attach 2 | . 1 1 . . Attach 7 | 2 2 1 . 2 Detach . | . . . . . Swap 10 | . 6 4 . . Drop 15 | 4 10 1 . . Fire 69 | . 33 27 . 9 Melee . | . . . . . Ram . | . . . . . Kick . | . . . . . Crush . | . . . . . Escape Stasis . | . . . . . Rewire . | . . . . . Trap 1 | . . 1 . . Miscellaneous . | . . . . . Route ------- -11/Scrapyard -10/Materials (discovered 3 exits: [*Mat x2] / *Min) -10/Mines (discovered 2 exits: [*Mat] / *Exi) -10/Exiles -9/Mines (discovered 1 exit: [*Mat]) History --------- Turn | Location | Event 6 | -11/Scrapyard | Discovered new exit (range 0) 6 | -11/Scrapyard | Entered Materials 54 | -10/Materials | Discovered new exit (range 8) 314 | -10/Materials | Build established: Mutant 636 | -10/Materials | Discovered new exit (range 7) 914 | -10/Materials | Discovered new exit (range 15) 926 | -10/Materials | Central database locked down 1184 | -10/Materials | Entered Mines 1201 | -10/Mines | Central database locked down 1235 | -10/Mines | Joined a pair of Derelicts in attacking an 0b10 outpost 1261 | -10/Mines | Assembled infested the area 1266 | -10/Mines | Assisted by a Guerilla fighting off Assembled 1329 | -10/Mines | Discovered new exit (range 5) 1605 | -10/Mines | Deemed a non-threat by the Exiles lab entrance 1605 | -10/Mines | Discovered new exit (range 5) 1736 | -10/Mines | Found a hidden stash of uninstalled traps 2284 | -10/Mines | Core integrity fell below 50% 2451 | -10/Mines | Learned location of Storage (-7) 2557 | -10/Mines | Received a Mining Laser from a helpful Derelict 3192 | -10/Mines | Entered Exiles 3266 | -10/Exiles | Met 8R-AWN 3324 | -10/Exiles | Met EX-HEX 3452 | -10/Exiles | Met EX-DEC 3468 | -10/Exiles | Learned location of Zion (-6) 3640 | -10/Exiles | Discovered new exit (range 12) 3672 | -10/Exiles | Entered Mines 3704 | -9/Mines | Discovered new exit (range 10) 3959 | -9/Mines | Core integrity fell below 20% 3960 | -9/Mines | Destroyed by YI-UF0 with YI-UF0's Doublenader Last Messages --------------- GOAL=ESCAPE 03704_ Searching scrap... 03704_ Found Lrg. Storage Unit. 03704_ Found Shotgun. 03704_ Found Terrain Scanner. 03704_ Found Salvage Targeting Computer. 03704_ Found 21 Matter. 03704_ EXIT=FOUND 03727_ Acquired 6 matter. 03800_ K-01 Serf cleans the Laser Drill. 03839_ K-01 Serf collects debris. 03940_ Hvy. Assault Rifle destroyed. 03942_ Assault Rifle destroyed. 03943_ The unstable cave ceiling collapses. 03944_ Lgt. Armor Plating destroyed. 03948_ Ion Engine destroyed. 03952_ Imp. Treads destroyed. 03953_ The unstable cave ceiling collapses. 03958_ Imp. Treads destroyed. 03960_ The unstable cave ceiling collapses. Map ----- +----------------------------------------------------+ | ??????????????????????????????????????????? | | ??????????????????????????????????????????? | | ??????????????????????????????????????????? | | ??????????????????????????????????????????? | | ??????????????????????????????????????????? | | ??????????????????????????????????????????? | | ??????????????????????????????????????????? | | ??????????????????????????????????????????? | | ??????????????????????????????????????????? | | ??????????????????????????????????????????? | | ??????????????????????????????????????????? | | ??????????????????????????????????????????? | | ??????????????????????????????????????????? | | ??????????????????????????????????????????? | | ?????????????????????#????????????????????? | | ????????????????????? ????????????????????? | | ?????????????????????# ???????????????????? | | ?????????????????????# ##?????????????????? | | ?????????????????????? # ##???????????????? | | ?????????????????????? ####????????????? | | ?????????????????????## ##???????????? | | ??????????????????#### #???????????? | | ??????????? # ## ##??????????? | | ??????????# # #??????????? | | ???????????# # ## #??? | | ??????????# g @ #???? | | ?????????? # #???? | | ?????????? # #?????? | | ??????????? % ## #?????? | | ??????????? # ##???## # ##### #?????? | | ???????????? ????????#### ##???? ??????? | | ??????????????????????## ##????? ????? | | ?????????? #??????????# #??????? #???? | | ?????????? #??????????# #????????????? | | ?????????? #?????????## ##???????????? | | ?????????? #?????????# ####????????? | | ?????????? #?????????# ###??????? | | ?????????? #?????????## ##?????? | | ?????????? #??????????#### #?????? | | ????###### ###???????????## #?????? | | ##### #????????????### #?????? | | ![! """ #??????????????# # #?????? | | %! """ #??????????????# ## ##?????? | | ##### """ < #??????????????# #?###??????? | | ????# #???????????#### #??????????? | | ????##### ###??????###??# ##?????????? | | ????????# #???????## ##?# ## #?????????? | | ????????# ###????## ###?### #?????????? | | ????????# ##??## ## ??# #?????????? | | ???????## #?## ???# #?????????? | +----------------------------------------------------+ Best States ------------- Heat Dissipation 25 Energy Generation 10 Energy Capacity 250 Matter Stores 300 Matter Capacity 300 Sight Range 16 Terrain Scan Density 10 Armor Coverage 150 Evasion (%) 40 Recoil Reduction 2 Item Schematics ----------------- None Robot Schematics ------------------ None Fabricated ------------ Nothing Alien Tech Used ----------------- None Achievements -------------- None Challenges ------------ None Game ------ Seed TiamatDataCore Manual? 0 Play Time 00:14:15 Cumulative 614.7 hours Start 2022.04.29 @ 18:00:37 End 2022.04.29 @ 18:14:24 Sessions 1 Manual Loads 0 Difficulty Rogue Special Mode None Game No. 580 Rogue 580 Adventurer 0 Explorer 0 Win Type - Total 22 Types 10/4/4/1/1/0/1/1/0 Lore% 88 Gallery% 95 Achievement% 77 Wizard Run 0 Options --------- ASCII 0 Keyboard 0 Movement Mouse Keybinds 1 Fullscreen 2 Font 24/Smallcaps Map View 76x50 Tactical HUD 1 Map Filters NONE Filters NONE Steam 1 RUN: a6e0ba98-82fe-479b-a45f-370740f1bb50